fUST/lending_fUST_20250627
["ID","MTS","AMOUNT","RATE_DAILY","PERIOD"]
[368004786,1750990255332,-460.0,0.00021369,2]
[368004787,1750990255342,-460.0,0.00021369,2]
[368004788,1750990255351,-879.35,0.00021369,2]
[368004789,1750990255360,-665.58,0.00021369,2]
[368004790,1750990255369,-2063.54,0.00021369,2]
[368004791,1750990255380,-478.81,0.00021369,2]
[368004792,1750990255390,-460.0,0.00021369,2]
[368004793,1750990255399,-460.0,0.00021369,2]
[368004794,1750990255408,-1539.19,0.00021369,2]
[368004795,1750990255417,-709.13,0.00021369,2]
[368004796,1750990255426,-460.0,0.00021369,2]
[368004797,1750990255435,-2766.63,0.00021369,2]
[368004798,1750990255445,-497.95,0.00021369,2]
[368004799,1750990255454,-460.0,0.00021369,2]
[368004800,1750990255463,-668.1,0.00021369,2]
[368004801,1750990255473,-4068.66,0.00021369,2]
[368004802,1750990255482,-500.26,0.00021369,2]
[368004803,1750990255491,-221.96838249,0.00021369,2]
[368004804,1750990255500,-1211.16,0.00021369,2]
[368004805,1750990255509,-624.51,0.00021369,2]
[368004806,1750990255519,-460.0,0.00021369,2]
[368004807,1750990255527,-460.0,0.00021369,2]
[368004808,1750990255536,-1056.28,0.00021369,2]
[368004809,1750990255546,-1439.35,0.00021369,2]
[368004810,1750990255555,-460.0,0.00021369,2]
[368004811,1750990255565,-1623.76,0.00021369,2]
[368004812,1750990255574,-770.47,0.00021369,2]
[368004813,1750990255583,-460.0,0.00021369,2]
[368004814,1750990255592,-1359.78,0.00021369,2]
[368004815,1750990255602,-525.87,0.00021369,2]
[368004816,1750990255611,-577.78,0.00021369,2]
[368004817,1750990255620,-851.92,0.00021369,2]
[368004818,1750990255630,-3159.43,0.00021369,2]
[368004819,1750990255639,-460.0,0.00021369,2]
[368004820,1750990255649,-571.76,0.00021369,2]
[368004821,1750990255658,-460.0,0.00021369,2]
[368004822,1750990255667,-816.91,0.00021369,2]
[368004823,1750990255677,-181.56515,0.00021369,2]
[368004824,1750990255686,-460.0,0.00021369,2]
[368004825,1750990255695,-181.56515,0.00021369,2]
[368004826,1750990255704,-2249.21,0.00021369,2]
[368004827,1750990255714,-527.59,0.00021369,2]
[368004828,1750990255723,-609.62,0.00021369,2]
[368004829,1750990255733,-460.0,0.00021369,2]
[368004830,1750990255742,-460.0,0.00021369,2]
[368004831,1750990255752,-1901.38,0.00021369,2]
[368004832,1750990255762,-460.0,0.00021369,2]
[368004833,1750990255772,-804.08,0.00021369,2]
[368004834,1750990255781,-351.320462,0.00021369,2]
[368004835,1750990255791,-460.0,0.00021369,2]
[368004836,1750990255801,-351.320462,0.00021369,2]
[368004837,1750990255810,-1406.946589,0.00021369,2]
[368004838,1750990255820,-460.0,0.00021369,2]
[368004839,1750990255829,-1406.946589,0.00021369,2]
[368004840,1750990255839,-2275.33,0.00021369,2]
[368004841,1750990255848,-460.0,0.00021369,2]
[368004842,1750990255858,-2499.19,0.00021369,2]
[368004843,1750990255867,-460.0,0.00021369,2]
[368004844,1750990255876,-988.74,0.00021369,2]
[368004845,1750990255885,-460.0,0.00021369,2]
[368004846,1750990255894,-831.38,0.00021369,2]
[368004847,1750990255904,-460.0,0.00021369,2]
[368004848,1750990255913,-200.0,0.0002137,2]
[368004849,1750990255922,-168.0,0.00021373,2]
[368004850,1750990255931,-168.0,0.00021399,2]
[368004851,1750990255941,-2000.0,0.000214,2]
[368004852,1750990255950,-151.0,0.000214,3]
[368004853,1750990255959,-151.0,0.00021449,2]
[368004854,1750990255969,-151.367074,0.00021449,2]
[368004855,1750990255978,-151.0,0.00021449,2]
[368004856,1750990255988,-151.0,0.00021449,2]
[368004857,1750990255999,-151.0,0.00021449,2]
[368004858,1750990256010,-151.0,0.00021485,2]
[368004859,1750990256019,-1788.71019479,0.00021485,2]
[368004860,1750990256029,-150.0,0.00021501,2]
[368004861,1750990256039,-6544.14965212,0.00021555,5]
[368004862,1750990256049,-1213.0815,0.0002156,4]
[368004863,1750990256059,-151.0,0.0002156,2]
[368004864,1750990256068,-600.0,0.0002156,2]
[368004865,1750990256078,-151.0,0.0002156,2]
[368004866,1750990256087,-151.0,0.000216,4]
[368004867,1750990256095,-2000.0,0.000216,2]
[368004868,1750990256104,-201.459262,0.00021613,2]
[368004869,1750990256113,-201.459262,0.00021613,2]
[368004870,1750990256122,-1686.69,0.00021616,2]
[368004871,1750990256132,-1686.69,0.00021616,2]
[368004872,1750990256141,-1686.69,0.00021616,2]
[368004873,1750990256150,-1686.69,0.00021616,2]
[368004874,1750990256160,-1686.69,0.00021616,2]
[368004875,1750990256169,-1686.69,0.00021616,2]
[368004876,1750990256178,-1686.69,0.00021616,2]
[368004877,1750990256187,-1686.69,0.00021616,2]
[368004878,1750990256198,-1686.69,0.00021616,2]
[368004879,1750990256207,-1686.69,0.00021616,2]
[368004880,1750990256217,-1686.69,0.00021616,2]
[368004881,1750990256226,-1686.69,0.00021616,2]
[368004882,1750990256235,-1686.69,0.00021616,2]
[368004883,1750990256244,-1686.69,0.00021616,2]
[368004884,1750990256253,-1686.69,0.00021616,2]
[368004885,1750990256263,-1686.69,0.00021616,2]
[368004886,1750990256272,-1686.69,0.00021616,2]
[368004887,1750990256281,-1686.69,0.00021616,2]
[368004888,1750990256290,-1686.69,0.00021616,2]
[368004889,1750990256299,-1686.69,0.00021616,2]
[368004890,1750990256308,-1686.69,0.00021616,2]
[368004891,1750990256316,-1686.69,0.00021616,2]
[368004892,1750990256325,-1686.69,0.00021616,2]
[368004893,1750990256334,-1686.90749318,0.00021616,2]
[368004894,1750990256344,-203.979392,0.00021616,2]
[368004895,1750990256354,-192.869503,0.00021616,2]
[368004896,1750990256363,-151.0,0.00021616,2]
[368004897,1750990256372,-460.0,0.00021627,2]
[368004898,1750990256382,-460.0,0.00021627,2]
[368004899,1750990256391,-460.0,0.00021627,2]
[368004900,1750990256400,-487.91,0.00021627,2]
[368004901,1750990256409,-460.0,0.00021627,2]
[368004902,1750990256418,-474.53,0.00021627,2]
[368004903,1750990256427,-181.56515,0.00021627,2]
[368004904,1750990256436,-181.56515,0.00021627,2]
[368004905,1750990256445,-351.320462,0.00021627,2]
[368004906,1750990256455,-351.320462,0.00021627,2]
[368004907,1750990256464,-1406.946589,0.00021627,2]
[368004908,1750990256473,-1406.946589,0.00021627,2]
[368004909,1750990256482,-460.0,0.00021643,2]
[368004910,1750990256491,-460.0,0.00021643,2]
[368004911,1750990256500,-460.0,0.00021643,2]
[368004912,1750990256509,-676.69,0.00021643,2]
[368004913,1750990256518,-619.16,0.00021643,2]
[368004914,1750990256527,-460.0,0.00021643,2]
[368004915,1750990256536,-460.0,0.00021643,2]
[368004916,1750990256545,-505.43,0.00021643,2]
[368004917,1750990256554,-496.88,0.00021643,2]
[368004918,1750990256563,-460.0,0.00021643,2]
[368004919,1750990256572,-701.54,0.00021643,2]
[368004920,1750990256582,-460.0,0.00021643,2]
[368004921,1750990256591,-460.0,0.00021643,2]
[368004922,1750990256600,-151.0,0.00021643,2]
[368004923,1750990256609,-460.0,0.00021643,2]
[368004924,1750990256619,-460.0,0.00021643,2]
[368004925,1750990256628,-598.63,0.00021643,2]
[368004926,1750990256638,-460.0,0.00021643,2]
[368004927,1750990256647,-460.0,0.00021643,2]
[368004928,1750990256656,-460.0,0.00021643,2]
[368004929,1750990256665,-460.0,0.00021643,2]
[368004930,1750990256674,-151.0,0.00021643,2]
[368004931,1750990256684,-460.0,0.00021643,2]
[368004932,1750990256693,-460.0,0.00021643,2]
[368004933,1750990256703,-460.0,0.00021643,2]
[368004934,1750990256713,-476.96,0.00021643,2]
[368004935,1750990256722,-648.92,0.00021643,2]
[368004936,1750990256732,-460.0,0.00021643,2]
[368004937,1750990256742,-855.66,0.00021643,2]
[368004938,1750990256751,-569.23,0.00021643,2]
[368004939,1750990256762,-543.97,0.00021643,2]
[368004940,1750990256772,-151.0,0.00021643,2]
[368004941,1750990256781,-833.92,0.00021643,2]
[368004942,1750990256791,-468.86,0.00021643,2]
[368004943,1750990256801,-1937.95,0.00021643,2]
[368004944,1750990256810,-460.0,0.00021643,2]
[368004945,1750990256819,-666.48,0.00021643,2]
[368004946,1750990256829,-510.45,0.00021643,2]
[368004947,1750990256838,-4160.84,0.00021643,2]
[368004948,1750990256848,-585.93,0.00021643,2]
[368004949,1750990256857,-460.0,0.00021643,2]
[368004950,1750990256866,-810.26,0.00021643,2]
[368004951,1750990256875,-1476.7,0.00021643,2]
[368004952,1750990256885,-664.72,0.00021643,2]
[368004953,1750990256895,-709.05,0.00021643,2]
[368004954,1750990256904,-1068.07,0.00021643,2]
[368004955,1750990256914,-690.78,0.00021643,2]
[368004956,1750990256923,-460.0,0.00021643,2]
[368004957,1750990256932,-460.0,0.00021643,2]
[368004958,1750990256941,-879.35,0.00021643,2]
[368004959,1750990256950,-665.58,0.00021643,2]
[368004960,1750990256959,-2063.54,0.00021643,2]
[368004961,1750990256968,-478.81,0.00021643,2]
[368004962,1750990256978,-460.0,0.00021643,2]
[368004963,1750990256987,-1539.19,0.00021643,2]
[368004964,1750990256999,-709.13,0.00021643,2]
[368004965,1750990257009,-460.0,0.00021643,2]
[368004966,1750990257018,-2766.63,0.00021643,2]
[368004967,1750990257028,-497.95,0.00021643,2]
[368004968,1750990257038,-460.0,0.00021643,2]
[368004969,1750990257047,-668.1,0.00021643,2]
[368004970,1750990257056,-4068.66,0.00021643,2]
[368004971,1750990257065,-500.26,0.00021643,2]
[368004972,1750990257076,-1211.16,0.00021643,2]
[368004973,1750990257086,-624.51,0.00021643,2]
[368004974,1750990257096,-460.0,0.00021643,2]
[368004975,1750990257105,-460.0,0.00021643,2]
[368004976,1750990257115,-1056.28,0.00021643,2]
[368004977,1750990257124,-1439.35,0.00021643,2]
[368004978,1750990257134,-460.0,0.00021643,2]
[368004979,1750990257143,-1623.76,0.00021643,2]
[368004980,1750990257152,-460.0,0.00021643,2]
[368004981,1750990257162,-770.47,0.00021643,2]
[368004982,1750990257173,-1359.78,0.00021643,2]
[368004983,1750990257184,-525.87,0.00021643,2]
[368004984,1750990257193,-577.78,0.00021643,2]
[368004985,1750990257202,-851.92,0.00021643,2]
[368004986,1750990257212,-3159.43,0.00021643,2]
[368004987,1750990257221,-460.0,0.00021643,2]
[368004988,1750990257230,-571.76,0.00021643,2]
[368004989,1750990257239,-460.0,0.00021643,2]
[368004990,1750990257248,-816.91,0.00021643,2]
[368004991,1750990257257,-516.25865222,0.00021643,2]
[368004992,1750990257266,-2249.21,0.00021643,2]
[368004993,1750990257275,-527.59,0.00021643,2]
[368004994,1750990257284,-609.62,0.00021643,2]
[368004995,1750990257293,-460.0,0.00021643,2]
[368004996,1750990257303,-460.0,0.00021643,2]
[368004997,1750990257312,-1901.38,0.00021643,2]
[368004998,1750990257321,-460.0,0.00021643,2]
[368004999,1750990257330,-804.08,0.00021643,2]
[368005000,1750990257339,-460.0,0.00021643,2]
[368005001,1750990257348,-460.0,0.00021643,2]
[368005002,1750990257358,-2275.33,0.00021643,2]
[368005003,1750990257367,-609.1211868,0.00021643,2]
[368005004,1750990257376,-2499.19,0.00021643,2]
[368005005,1750990257385,-460.0,0.00021643,2]
[368005006,1750990257395,-988.74,0.00021643,2]
[368005007,1750990257405,-151.0,0.00021643,2]
[368005008,1750990257414,-460.0,0.00021643,2]
[368005009,1750990257423,-831.38,0.00021643,2]
[368005010,1750990257433,-460.0,0.00021643,2]
[368005011,1750990257442,-150.165,0.00021666,2]
[368005012,1750990257451,-204.312,0.00021666,2]
[368005013,1750990257461,-150.0,0.00021666,2]
[368005014,1750990257470,-150.101,0.00021666,2]
[368005015,1750990257479,-217.181,0.00021666,2]
[368005016,1750990257489,-969.909,0.00021666,2]
[368005017,1750990257498,-654.0,0.00021666,2]
[368005018,1750990257508,-2166.837,0.00021666,2]
[368005019,1750990257518,-416.894,0.00021666,2]
[368005020,1750990257527,-170.132469,0.0002168,2]
[368005021,1750990257536,-640.0,0.000217,2]
[368005022,1750990257545,-1113.89170431,0.0002172,2]
[368005023,1750990257555,-189.977727,0.00021721,2]
[368005024,1750990257566,-151.0,0.00021723,2]
[368005025,1750990257575,-151.0,0.00021723,2]
[368005026,1750990257584,-251.147989,0.00021723,2]
[368005027,1750990257593,-251.147989,0.00021723,2]
[368005028,1750990257602,-168.0,0.0002174,2]
[368005029,1750990257612,-1043.91482968,0.00021753,2]
[368005030,1750990257622,-6544.14965212,0.00021762,5]
[368005031,1750990257631,-500.0,0.00021773,2]
[368005032,1750990257640,-500.0,0.00021773,2]
[368005033,1750990257649,-127857.75439241,0.0002178,2]
[368005034,1750990257658,-151.0,0.0002178,2]
[368005035,1750990257667,-151.0,0.0002178,2]
[368005036,1750990257677,-151.0,0.0002178,2]
[368005037,1750990257686,-151.0,0.0002178,2]
[368005038,1750990257695,-201.459262,0.0002178,2]
[368005039,1750990257704,-201.459262,0.0002178,2]
[368005040,1750990257714,-181.56515,0.0002178,2]
[368005041,1750990257723,-181.56515,0.0002178,2]
[368005042,1750990257732,-888.99803573,0.0002178,2]
[368005043,1750990257741,-351.320462,0.0002178,2]
[368005044,1750990257751,-351.320462,0.0002178,2]
[368005045,1750990257760,-1406.946589,0.0002178,2]
[368005046,1750990257769,-1406.946589,0.0002178,2]
[368005047,1750990257780,-151.0,0.0002178,2]
[368005048,1750990257789,-244.39901772,0.00021799,2]
[368005049,1750990257798,-50128.85039342,0.000218,2]
[368005050,1750990257808,-151.0,0.000218,3]
[368005051,1750990257817,-3609.48,0.000218,2]
[368005052,1750990257826,-151.0,0.000218,2]
[368005053,1750990257835,-151.0,0.000218,2]
[368005054,1750990257844,-2000.0,0.000218,2]
[368005055,1750990257854,-151.0,0.000218,2]
[368005056,1750990257863,-151.0,0.000218,2]
[368005057,1750990257871,-251.147989,0.000218,2]
[368005058,1750990257881,-251.147989,0.000218,2]
[368005059,1750990257890,-151.0,0.000218,4]
[368005060,1750990257900,-372.26062362,0.00021876,2]
[368005061,1750990257909,-151.0,0.000219,4]
[368005062,1750990257918,-460.0,0.00021901,2]
[368005063,1750990257927,-460.0,0.00021901,2]
[368005064,1750990257936,-460.0,0.00021901,2]
[368005065,1750990257945,-487.91,0.00021901,2]
[368005066,1750990257954,-460.0,0.00021901,2]
[368005067,1750990257963,-474.53,0.00021901,2]
[368005068,1750990257972,-460.0,0.00021917,2]
[368005069,1750990257981,-460.0,0.00021917,2]
[368005070,1750990257992,-460.0,0.00021917,2]
[368005071,1750990258002,-676.69,0.00021917,2]
[368005072,1750990258136,-619.16,0.00021917,2]
[368005073,1750990258146,-460.0,0.00021917,2]
[368005074,1750990258156,-460.0,0.00021917,2]
[368005075,1750990258166,-505.43,0.00021917,2]
[368005076,1750990258175,-496.88,0.00021917,2]
[368005077,1750990258184,-460.0,0.00021917,2]
[368005078,1750990258194,-701.54,0.00021917,2]
[368005079,1750990258204,-460.0,0.00021917,2]
[368005080,1750990258214,-261.12962635,0.00021917,2]
[368005081,1750990258223,-460.0,0.00021917,2]
[368005082,1750990258232,-460.0,0.00021917,2]
[368005083,1750990258242,-598.63,0.00021917,2]
[368005084,1750990258251,-460.0,0.00021917,2]
[368005085,1750990258261,-460.0,0.00021917,2]
[368005086,1750990258270,-460.0,0.00021917,2]
[368005087,1750990258281,-460.0,0.00021917,2]
[368005088,1750990258291,-460.0,0.00021917,2]
[368005089,1750990258300,-460.0,0.00021917,2]
[368005090,1750990258309,-460.0,0.00021917,2]
[368005091,1750990258318,-476.96,0.00021917,2]
[368005092,1750990258327,-648.92,0.00021917,2]
[368005093,1750990258336,-855.66,0.00021917,2]
[368005094,1750990258345,-460.0,0.00021917,2]
[368005095,1750990258354,-569.23,0.00021917,2]
[368005096,1750990258364,-543.97,0.00021917,2]
[368005097,1750990258373,-833.92,0.00021917,2]
[368005098,1750990258382,-468.86,0.00021917,2]
[368005099,1750990258392,-1937.95,0.00021917,2]
[368005100,1750990258401,-460.0,0.00021917,2]
[368005101,1750990258410,-666.48,0.00021917,2]
[368005102,1750990258419,-510.45,0.00021917,2]
[368005103,1750990258428,-4160.84,0.00021917,2]
[368005104,1750990258438,-585.93,0.00021917,2]
[368005105,1750990258447,-460.0,0.00021917,2]
[368005106,1750990258456,-810.26,0.00021917,2]
[368005107,1750990258465,-1476.7,0.00021917,2]
[368005108,1750990258475,-664.72,0.00021917,2]
[368005109,1750990258484,-709.05,0.00021917,2]
[368005110,1750990258493,-1068.07,0.00021917,2]
[368005111,1750990258502,-690.78,0.00021917,2]
[368005112,1750990258512,-460.0,0.00021917,2]
[368005113,1750990258522,-460.0,0.00021917,2]
[368005114,1750990258531,-879.35,0.00021917,2]
[368005115,1750990258541,-665.58,0.00021917,2]
[368005116,1750990258550,-2063.54,0.00021917,2]
[368005117,1750990258560,-478.81,0.00021917,2]
[368005118,1750990258569,-460.0,0.00021917,2]
[368005119,1750990258578,-1539.19,0.00021917,2]
[368005120,1750990258587,-709.13,0.00021917,2]
[368005121,1750990258596,-460.0,0.00021917,2]
[368005122,1750990258605,-2766.63,0.00021917,2]
[368005123,1750990258615,-497.95,0.00021917,2]
[368005124,1750990258626,-460.0,0.00021917,2]
[368005125,1750990258635,-668.1,0.00021917,2]
[368005126,1750990258644,-4068.66,0.00021917,2]
[368005127,1750990258653,-500.26,0.00021917,2]
[368005128,1750990258663,-1211.16,0.00021917,2]
[368005129,1750990258672,-624.51,0.00021917,2]
[368005130,1750990258682,-460.0,0.00021917,2]
[368005131,1750990258692,-460.0,0.00021917,2]
[368005132,1750990258701,-1056.28,0.00021917,2]
[368005133,1750990258711,-1439.35,0.00021917,2]
[368005134,1750990258720,-403.2417808,0.00021917,2]
[368005135,1750990258730,-1623.76,0.00021917,2]
[368005136,1750990258740,-460.0,0.00021917,2]
[368005137,1750990258749,-770.47,0.00021917,2]
[368005138,1750990258759,-1359.78,0.00021917,2]
[368005139,1750990258768,-525.87,0.00021917,2]
[368005140,1750990258777,-577.78,0.00021917,2]
[368005141,1750990258787,-851.92,0.00021917,2]
[368005142,1750990258796,-3159.43,0.00021917,2]
[368005143,1750990258805,-460.0,0.00021917,2]
[368005144,1750990258815,-571.76,0.00021917,2]
[368005145,1750990258824,-169.27,0.00021917,2]
[368005146,1750990258834,-816.91,0.00021917,2]
[368005147,1750990258843,-2249.21,0.00021917,2]
[368005148,1750990258852,-527.59,0.00021917,2]
[368005149,1750990258861,-609.62,0.00021917,2]
[368005150,1750990258870,-460.0,0.00021917,2]
[368005151,1750990258879,-460.0,0.00021917,2]
[368005152,1750990258890,-1901.38,0.00021917,2]
[368005153,1750990258901,-460.0,0.00021917,2]
[368005154,1750990258910,-804.08,0.00021917,2]
[368005155,1750990258919,-460.0,0.00021917,2]
[368005156,1750990258929,-460.0,0.00021917,2]
[368005157,1750990258940,-2275.33,0.00021917,2]
[368005158,1750990258949,-460.0,0.00021917,2]
[368005159,1750990258958,-988.74,0.00021917,2]
[368005160,1750990258978,-460.0,0.00021917,2]
[368005161,1750990258989,-831.38,0.00021917,2]
[368005162,1750990259002,-460.0,0.00021917,2]
[368005163,1750990259012,-150.0,0.00021918,2]
[368005164,1750990259022,-200.76911296,0.00021918,2]
[368005165,1750990259031,-1362.996031,0.0002194,5]
[368005166,1750990259042,-1000.0,0.0002196,5]
[368005167,1750990259052,-6544.14965212,0.00021969,6]
[368005168,1750990259062,-555.44302393,0.00021973,2]
[368005169,1750990259073,-500.0,0.00021973,2]
[368005170,1750990259083,-500.0,0.00021973,2]
[368005171,1750990259093,-500.0,0.00021973,2]
[368005172,1750990259103,-500.0,0.00021973,2]
[368005173,1750990259112,-583.40186922,0.00021973,2]
[368005174,1750990259121,-500.0,0.00021973,2]
[368005175,1750990259130,-500.95176564,0.00021973,2]
[368005176,1750990259141,-500.0,0.00021973,2]
[368005177,1750990259151,-500.0,0.00021973,2]
[368005178,1750990259161,-500.0,0.00021973,2]
[368005179,1750990259171,-500.0,0.00021973,2]
[368005180,1750990259181,-500.0,0.00021973,2]
[368005181,1750990259191,-500.0,0.00021973,2]
[368005182,1750990259201,-500.0,0.00021973,2]
[368005183,1750990259210,-500.0,0.00021973,2]
[368005184,1750990259220,-500.0,0.00021973,2]
[368005185,1750990259229,-500.0,0.00021973,2]
[368005186,1750990259239,-500.0,0.00021973,2]
[368005187,1750990259248,-600.0,0.00021973,2]
[368005188,1750990259257,-500.0,0.00021973,2]
[368005189,1750990259267,-500.0,0.00021973,2]
[368005190,1750990259276,-500.0,0.00021973,2]
[368005191,1750990259285,-1000.0,0.0002198,5]
[368005192,1750990259295,-151.0,0.0002198,7]
[368005193,1750990259305,-201.459262,0.00021997,7]
[368005194,1750990259315,-201.459262,0.00021997,7]
[368005195,1750990259324,-2204.232,0.00021998,2]
[368005196,1750990259333,-181.56515,0.00021998,7]
[368005197,1750990259343,-181.56515,0.00021998,7]
[368005198,1750990259352,-351.320462,0.00021998,7]
[368005199,1750990259362,-351.320462,0.00021998,7]
[368005200,1750990259371,-1406.946589,0.00021998,7]
[368005201,1750990259381,-1406.946589,0.00021998,7]
[368005202,1750990259391,-12972.42341348,0.00022,2]
[368005203,1750990259401,-13121.48237691,0.00022,2]
[368005204,1750990259410,-269.95456355,0.00022,8]
[368005205,1750990259420,-500.0,0.00022,8]
[368005206,1750990259429,-219373.76517376,0.00022,2]
[368005207,1750990261906,-134518.07113695,0.00022,2]
[368005208,1750990263124,-460.0,0.00019178,2]
[368005209,1750990263134,-460.0,0.00019178,2]
[368005210,1750990263143,-481.05784661,0.00019452,2]
[368005211,1750990263153,-460.0,0.00019726,2]
[368005212,1750990263163,-5065.78969951,0.00022,2]
[368005213,1750990263175,-479.18216696,0.00022,2]
[368005214,1750990263503,-460.0,0.00019178,2]
[368005215,1750990263512,-415.3499226,0.00019178,2]
[368005216,1750990468610,2400.0,0.00023,30]
[368005217,1750990528426,171.2451236,0.00013699,2]
[368005220,1750991158169,-788.83271825,0.00019077,2]
[368005221,1750991158189,-21.52326777,0.00019156,2]
[368005222,1750991231092,-300.0,0.00019077,2]
[368005223,1750991231115,-2050.58226363,0.00019078,2]
[368005244,1750991317365,1651.73653444,0.00023,30]
[368005248,1750991349088,-1463.3948,0.00019,20]
[368005249,1750991351087,-1556.12228372,0.00019,20]
[368005253,1750991354129,-10440.60103373,0.00019,20]
[368005254,1750991354150,-690.22862846,0.00019077,2]
[368005255,1750991354171,-18662.39313241,0.00019078,2]
[368005256,1750991354191,-160.0,0.00019151,2]
[368005257,1750991354210,-300.0,0.00019167,2]
[368005258,1750991354231,-1200.0,0.00019167,2]
[368005259,1750991354251,-1595.19,0.00019168,3]
[368005260,1750991354271,-452.3451064,0.00019168,3]
[368005286,1750991432817,-1253.94,0.00019168,3]
[368005287,1750991432827,-626.97,0.00019168,3]
[368005288,1750991432836,-313.48,0.00019168,3]
[368005289,1750991432845,-156.74,0.00019168,3]
[368005290,1750991432854,-470.25,0.00019168,3]
[368005291,1750991432863,-500.0,0.00019173,2]
[368005292,1750991432873,-157.19789725,0.00019177,2]
[368005293,1750991432885,-142.80210275,0.00019177,2]
[368005294,1750991432894,-158.56805275,0.00019177,2]
[368005295,1750991432903,-188.66948886,0.00019177,2]
[368005296,1750991432913,-211.15896566,0.00019177,2]
[368005297,1750991432922,-460.0,0.00019178,2]
[368005298,1750991432932,-460.0,0.00019178,2]
[368005299,1750991432941,-387.76029338,0.00019178,2]
[368005300,1750991432950,-460.0,0.00019178,2]
[368005301,1750991432959,-460.85015021,0.00019178,2]
[368005302,1750991432968,-460.0,0.00019178,2]
[368005303,1750991432978,-460.0,0.00019178,2]
[368005304,1750991432987,-460.0,0.00019178,2]
[368005305,1750991432997,-455.09457182,0.00019178,2]
[368005306,1750991433006,-460.0,0.00019178,2]
[368005307,1750991433016,-461.37481612,0.00019178,2]
[368005308,1750991433025,-460.0,0.00019178,2]
[368005309,1750991433036,-460.0,0.00019178,2]
[368005310,1750991433046,-463.64483651,0.00019178,2]
[368005311,1750991433055,-338.08888537,0.00019178,2]
[368005312,1750991433065,-460.0,0.00019178,2]
[368005313,1750991433075,-460.0,0.00019178,2]
[368005314,1750991433084,-460.0,0.00019178,2]
[368005315,1750991433094,-460.0,0.00019178,2]
[368005316,1750991433105,-460.4197075,0.00019178,2]
[368005317,1750991433115,-467.85559498,0.00019178,2]
[368005318,1750991433124,-463.07175187,0.00019178,2]
[368005319,1750991433133,-406.38651822,0.00019178,2]
[368005320,1750991433143,-460.0,0.00019178,2]
[368005321,1750991433152,-518.58366869,0.00019178,2]
[368005322,1750991433161,-433.46174028,0.00019178,2]
[368005323,1750991433171,-460.0,0.00019178,2]
[368005324,1750991433180,-460.0,0.00019178,2]
[368005325,1750991433190,-460.0,0.00019178,2]
[368005326,1750991433199,-460.0,0.00019178,2]
[368005327,1750991433208,-460.0,0.00019178,2]
[368005328,1750991433217,-384.7206075,0.00019178,2]
[368005329,1750991433227,-460.0,0.00019178,2]
[368005330,1750991433237,-463.14434827,0.00019178,2]
[368005331,1750991433246,-460.0,0.00019178,2]
[368005332,1750991433256,-1011.8219454,0.00019178,2]
[368005333,1750991433265,-460.0,0.00019178,2]
[368005334,1750991433275,-460.0,0.00019178,2]
[368005335,1750991433285,-460.0,0.00019178,2]
[368005336,1750991433294,-460.0,0.00019178,2]
[368005337,1750991433303,-460.0,0.00019178,2]
[368005338,1750991433312,-460.0,0.00019178,2]